fUST/lending_fUST_20250927
["ID","MTS","AMOUNT","RATE_DAILY","PERIOD"]
[388006482,1758961845055,-203.58048428,0.00033,120]
[388006483,1758961845064,-160.0,0.00033,7]
[388006484,1758961845073,-965.51036026,0.00033013,7]
[388006485,1758961845082,-170.107544,0.00033019,2]
[388006486,1758961845093,-164.7433,0.00033019,2]
[388006487,1758961845102,-164.7433,0.00033019,2]
[388006488,1758961845112,-500.0,0.00033084,2]
[388006489,1758961845125,-168.0,0.00033097,7]
[388006490,1758961845134,-1504.72746306,0.00033116,5]
[388006491,1758961845143,-762.0,0.00033117,5]
[388006492,1758961845152,-168.0,0.00033149,2]
[388006493,1758961845161,-500.0,0.00033151,2]
[388006494,1758961845170,-150.693171,0.00033183,2]
[388006495,1758961845179,-286.60816791,0.000332,117]
[388006496,1758961845188,-168.0,0.0003321,2]
[388006497,1758961845197,-290.0,0.00033221,7]
[388006498,1758961845206,-520.3026214,0.000333,120]
[388006499,1758961845215,-203.58048428,0.000333,120]
[388006500,1758961845224,-3934.01,0.000333,14]
[388006501,1758961845233,-860.0,0.00033344,2]
[388006502,1758961845242,-3618.20518257,0.00033356,5]
[388006503,1758961845251,-500.0,0.00033358,2]
[388006504,1758961845260,-762.0,0.00033391,5]
[388006505,1758961845268,-500.0,0.00033425,2]
[388006506,1758961845277,-179.60486929,0.00033442,11]
[388006507,1758961845285,-869.1771396,0.00033521,5]
[388006508,1758961845293,-500.71978264,0.00033521,5]
[388006509,1758961845302,-153.0,0.00033539,2]
[388006510,1758961845312,-153.0,0.00033539,2]
[388006511,1758961845321,-153.0,0.00033539,2]
[388006512,1758961845330,-153.0,0.00033539,2]
[388006513,1758961845342,-153.0,0.00033539,2]
[388006514,1758961845352,-153.0,0.00033539,2]
[388006515,1758961845362,-153.0,0.00033539,2]
[388006516,1758961845371,-153.0,0.00033539,2]
[388006517,1758961845381,-217.73235,0.00033558,60]
[388006518,1758961845391,-153.0,0.0003361,2]
[388006519,1758961845400,-153.0,0.0003361,2]
[388006520,1758961845409,-153.0,0.0003361,2]
[388006521,1758961845418,-153.0,0.0003361,2]
[388006522,1758961845427,-153.0,0.0003361,2]
[388006523,1758961845437,-500.0,0.00033632,2]
[388006524,1758961845446,-168.0,0.00033641,7]
[388006525,1758961845455,-762.0,0.00033665,5]
[388006526,1758961845465,-500.0,0.00033699,2]
[388006527,1758961845474,-168.0,0.00033762,2]
[388006528,1758961845483,-289.0,0.00033792,2]
[388006529,1758961845493,-168.0,0.00033847,7]
[388006530,1758961845503,-168.0,0.00033849,2]
[388006531,1758961845512,-960.0,0.00033892,2]
[388006532,1758961845522,-500.0,0.00033906,2]
[388006533,1758961845531,-762.0,0.00033939,5]
[388006534,1758961845541,-168.0,0.00033961,7]
[388006535,1758961845550,-233.76631357,0.00033971,2]
[388006536,1758961845560,-160.0,0.00033971,2]
[388006537,1758961845569,-160.0,0.00033971,2]
[388006538,1758961845580,-160.0,0.00033971,2]
[388006539,1758961845590,-160.0,0.00033971,2]
[388006540,1758961845599,-479.63788024,0.00033973,2]
[388006541,1758961845609,-58398.92121529,0.00034,120]
[388006542,1758961845618,-168.0,0.00034037,7]
[388006543,1758961845628,-168.0,0.00034068,2]
[388006544,1758961845638,-233.5379959,0.00034133,2]
[388006545,1758961845647,-350.0,0.00034165,2]
[388006546,1758961845656,-614.37793807,0.0003418,2]
[388006547,1758961845665,-168.0,0.00034208,2]
[388006548,1758961845674,-202.07639996,0.00034212,5]
[388006549,1758961845683,-762.0,0.00034213,5]
[388006550,1758961845692,-168.0,0.00034257,2]
[388006551,1758961845701,-879.391134,0.00034373,2]
[388006552,1758961845711,-168.0,0.00034419,2]
[388006553,1758961845720,-1060.0,0.0003444,2]
[388006554,1758961845729,-762.0,0.00034487,5]
[388006555,1758961845739,-168.0,0.00034514,2]
[388006556,1758961845748,-351.0,0.00034594,2]
[388006557,1758961845757,-823.0,0.00034694,2]
[388006558,1758961845767,-920.2296175,0.000347,30]
[388006559,1758961845776,-762.0,0.00034761,5]
[388006560,1758961845786,-1060.68310511,0.00034893,5]
[388006561,1758961845795,-1160.0,0.00034988,2]
[388006562,1758961845804,-157.26189252,0.00035,120]
[388006563,1758961845814,-5000.0,0.00035,50]
[388006564,1758961845824,-3934.01,0.00035,14]
[388006565,1758961845833,-10653.55436734,0.00035,2]
[388006566,1758961845844,-1820.05171074,0.00035,2]
[388006567,1758961845854,-150.693171,0.00035027,2]
[388006568,1758961845865,-762.0,0.00035035,5]
[388006569,1758961845875,-200.0,0.00035261,120]
[388006570,1758961845885,-720.0,0.00035275,30]
[388006571,1758961845894,-762.0,0.00035309,5]
[388006572,1758961845904,-167.85147762,0.00035353,20]
[388006573,1758961845912,-1260.0,0.00035536,2]
[388006574,1758961845922,-762.0,0.00035583,5]
[388006575,1758961845931,-838.79624472,0.00035616,120]
[388006576,1758961845939,-979.0,0.00035751,2]
[388006577,1758961845949,-635.0,0.00035751,2]
[388006578,1758961845957,-2161.0,0.00035751,2]
[388006579,1758961845967,-762.0,0.00035857,5]
[388006580,1758961845976,-150.0,0.00035893,2]
[388006581,1758961845985,-248.3990749,0.00035917,2]
[388006582,1758961845994,-229.0,0.00036,120]
[388006583,1758961846004,-1360.0,0.00036084,2]
[388006584,1758961846013,-762.0,0.00036131,5]
[388006585,1758961846024,-203.1484647,0.0003621,2]
[388006586,1758961846033,-264.23913072,0.0003624,2]
[388006587,1758961846044,-228.527453,0.0003636,60]
[388006588,1758961846053,-762.0,0.00036405,5]
[388006589,1758961846063,-1460.0,0.00036632,2]
[388006590,1758961846072,-500.0,0.0003667,30]
[388006591,1758961846081,-762.0,0.00036678,5]
[388006592,1758961846091,-242611.00160556,0.00036789,60]
[388006593,1758961846100,-151.0,0.00036789,30]
[388006594,1758961846109,-151.0,0.00036789,30]
[388006595,1758961846119,-283.902086,0.00036789,30]
[388006596,1758961846134,-151.0,0.00036789,30]
[388006597,1758961846143,-151.0,0.00036789,30]
[388006598,1758961846153,-221.397259,0.00036789,30]
[388006599,1758961846162,-221.397259,0.00036789,30]
[388006601,1758961846172,-221.397259,0.00036789,30]
[388006602,1758961846182,-221.397259,0.00036789,30]
[388006603,1758961846192,-151.0,0.00036789,30]
[388006604,1758961846205,-150.89195399,0.000368,5]
[388006605,1758961846215,-150.693171,0.0003687,2]
[388006606,1758961846226,-762.0,0.00036952,5]
[388006607,1758961846237,-426.66391159,0.00037,120]
[388006608,1758961846246,-1560.0,0.0003718,2]
[388006609,1758961846256,-762.0,0.00037226,5]
[388006610,1758961846266,-233.5379959,0.00037272,2]
[388006611,1758961846276,-3934.01,0.000374,14]
[388006612,1758961846285,-762.0,0.000375,5]
[388006613,1758961846295,-879.391134,0.00037502,2]
[388006614,1758961846305,-4588.0,0.00037596,2]
[388006615,1758961846315,-1660.0,0.00037728,2]
[388006617,1758961846324,-783.55169945,0.00037774,5]
[388006619,1758961846334,-425.7881521,0.00037799,2]
[388006621,1758961846346,-211.95,0.000378,2]
[388006623,1758961846361,-199.09,0.000378,2]
[388006624,1758961846371,-1013.58805857,0.000378,2]
[388006625,1758961846380,-398.73029878,0.00037947,5]
[388006626,1758961846391,-2266.48900517,0.00038,30]
[388006627,1758961846408,-200.0,0.00038,120]
[388006628,1758961846419,-233.76631357,0.00038,30]
[388006629,1758961846428,-160.0,0.00038,30]
[388006630,1758961846439,-522.70726544,0.00038153,2]
[388006634,1758961846677,-1256.62922756,0.00038153,2]
[388006635,1758961846686,-873.46779996,0.00038186,2]
[388006636,1758961846708,-1041.5700025,0.00038186,2]
[388006637,1758961846719,-2139.50071434,0.00038186,2]
[388006638,1758961846727,-4000.0,0.00038267,4]
[388006639,1758961846737,-1760.0,0.00038276,2]
[388006640,1758961846746,-926.684666,0.00038356,2]
[388006641,1758961846755,-230.87046804,0.0003866,7]
[388006642,1758961846800,-103.41966367,0.0003866,7]
[388006643,1758961846809,-150.693171,0.00038713,120]
[388006644,1758961846818,-103.28474391,0.00038751,2]
[388006645,1758961847143,-151.0,0.000329,7]
[388006646,1758961847153,-2878.93607456,0.00032977,3]
[388006647,1758961847162,-875.71525609,0.00038751,2]
[388006648,1758961847171,-635.0,0.00038751,2]
[388006649,1758961847181,-2161.0,0.00038751,2]
[388006650,1758961847190,-864.0,0.00038802,90]
[388006651,1758961847200,-179.2750412,0.00038824,2]
[388006652,1758961847209,-405.34864,0.00038961,2]
[388006653,1758961847219,-200.0,0.00039439,30]
[388006654,1758961847228,-1573.58510209,0.0003944,7]
[388006655,1758961847881,-2110.45824551,0.0003944,7]
[388006656,1758961847897,-3556.6,0.0003944,7]
[388006657,1758961847908,-2181.09086732,0.0003944,7]
[388006658,1758961848363,-249.86942305,0.00027895,2]
[388006659,1758961848372,-1216.07,0.00030777,3]
[388006660,1758961848382,-151.0,0.000329,7]
[388006661,1758961848391,-151.0,0.00032901,7]
[388006662,1758961848400,-151.0,0.00032901,7]
[388006663,1758961848410,-21194.66713925,0.0003944,7]
[388006664,1758961848440,-449.76496148,0.0002924,2]
[388006665,1758961848449,-169.9084321,0.00032147,3]
[388006666,1758961848460,-268.48001,0.00032147,3]
[388006667,1758961848652,-716.53931282,0.00030584,2]
[388006668,1758961869829,-533.89623038,0.00025205,2]
[388006669,1758961897487,300.0,0.000252,2]
[388006670,1758961908771,300.0,0.000252,2]
[388006671,1758961919959,300.0,0.000252,2]
[388006672,1758961931137,300.0,0.000252,2]
[388006673,1758961943113,300.0,0.000252,2]
[388006674,1758961954338,300.0,0.000252,2]
[388006675,1758961959600,300.0,0.000252,2]
[388006676,1758962005761,2000.0,0.0002876,120]
[388006677,1758962021589,2000.0,0.000252,2]
[388006678,1758962044430,379.82439869,0.00025205,14]
[388006679,1758962044452,4620.17560131,0.00025205,14]
[388006680,1758962061537,-151.0,0.00029447,30]
[388006681,1758962146098,150.0,0.000249,2]
[388006685,1758962213311,62.04193793,0.00025205,2]
[388006686,1758962213334,97.95806207,0.00025205,2]
[388006687,1758962279608,493.87,0.0001812,15]
[388006688,1758962279881,493.87,0.0001812,15]
[388006689,1758962285656,209.65,0.00025205,2]
[388006690,1758962308377,500.0,0.00025205,2]
[388006691,1758962330961,500.0,0.00025205,2]
[388006692,1758962353618,398.73001548,0.00025205,2]
[388006695,1758962376928,500.0,0.00025205,2]
[388006704,1758962382715,167.243571,0.00014123,2]
[388006705,1758962382925,167.243571,0.00021185,2]
[388006706,1758962399569,500.0,0.00025205,2]
[388006707,1758962422363,590.46305356,0.00025205,2]
[388006708,1758962429691,5000.0,0.00025204,4]
[388006710,1758962445581,380.98172689,0.00025205,2]
[388006711,1758962445604,1420.17520407,0.00025205,2]
[388006712,1758962475656,5000.0,0.00025205,2]
[388006713,1758962491668,3579.83479593,0.00025205,2]
[388006714,1758962491693,1420.16520407,0.00025205,2]
[388006715,1758962506807,249.65384526,0.00025205,2]
[388006716,1758962522960,5000.0,0.00025205,2]
[388006717,1758962552939,3330.19095067,0.00025205,2]
[388006718,1758962552961,1424.80904933,0.00025205,2]
[388006719,1758962583082,5000.0,0.00025205,2]
[388006720,1758962590999,3575.20095067,0.00025205,2]
[388006721,1758962591024,1424.79904933,0.00025205,2]
[388006722,1758962599117,5000.0,0.00025205,2]
[388006723,1758962607283,3575.21095067,0.00025205,2]
[388006724,1758962607305,1424.78904933,0.00025205,2]
[388006725,1758962637564,5000.0,0.00025205,2]
[388006726,1758962653098,1896.799607,0.00025205,2]
[388006728,1758962662641,-174.31641897,0.000253,2]
[388006729,1758962669632,1678.42134367,0.00025205,2]
[388006730,1758962669654,1769.98345983,0.00025205,2]
[388006731,1758962677570,3103.200393,0.00025205,2]
[388006732,1758962708317,5000.0,0.00025205,2]
[388006734,1758962949134,-173.0,0.00023616,10]
[388006735,1758962949159,-412.86281557,0.00024953,13]
[388006736,1758962955098,-4587.13718443,0.00024953,13]
[388006737,1758962955119,-300.0,0.000252,2]
[388006738,1758962955139,-35.88358103,0.000253,2]
[388006739,1758962955159,-500.0,0.000253,2]
[388006740,1758962955179,-14.05183253,0.00025786,5]
[388006741,1758962955205,-138.98611937,0.00025786,5]
[388006742,1758962955224,-238.0,0.00026,2]
[388006743,1758962955243,-1000.0,0.00026396,2]
[388006744,1758962955262,-300.0,0.00026847,2]
[388006745,1758962955281,-1200.0,0.00026848,2]
[388006746,1758962955300,-451.72400257,0.00026945,2]
[388006747,1758962955319,-228.527453,0.00027793,60]
[388006748,1758962955347,-174.00897462,0.00028147,2]
[388006749,1758962955366,-500.0,0.00028246,2]
[388006750,1758962955386,-500.0,0.00028246,2]
[388006751,1758962955405,-500.0,0.00028246,2]
[388006752,1758962955423,-500.0,0.00028246,2]
[388006753,1758962955442,-500.0,0.00028246,2]
[388006754,1758962955466,-413.3284774,0.00028246,2]
[388006824,1758963031747,-300.0,0.00028245,2]
[388006826,1758963031756,-129.06873695,0.00028245,2]
[388006831,1758963031801,-170.93126305,0.00028245,2]
[388006833,1758963031811,-300.0,0.00028245,2]
[388006835,1758963031821,-1200.0,0.00028245,2]
[388006836,1758963031830,-300.0,0.00028245,2]
[388006837,1758963031840,-9631.32446098,0.00028246,2]
[388006838,1758963031852,-40368.67553902,0.00028246,2]
[388006839,1758963031861,-86.6715226,0.00028246,2]
[388006841,1758963031870,-230.59983782,0.00028246,2]
[388006843,1758963031879,-500.0,0.00028246,2]
[388006845,1758963031887,-500.0,0.00028246,2]
[388006847,1758963031897,-500.0,0.00028246,2]
[388006849,1758963031906,-500.0,0.00028246,2]
[388006851,1758963031915,-537.77508477,0.00028246,2]
[388006854,1758963031925,-237.46397415,0.00028246,2]
[388006857,1758963031934,-500.0,0.00028246,2]
[388006860,1758963031944,-500.0,0.00028246,2]
[388006862,1758963031953,-520.28169489,0.00028246,2]
[388006866,1758963031963,-500.0,0.00028246,2]
[388006868,1758963031977,-500.0,0.00028246,2]
[388006872,1758963031986,-500.0,0.00028246,2]
[388006875,1758963031996,-500.0,0.00028246,2]
[388006877,1758963032006,-500.0,0.00028246,2]
[388006879,1758963032016,-500.0,0.00028246,2]
[388006881,1758963032030,-500.0,0.00028246,2]
[388006884,1758963032039,-500.0,0.00028246,2]
[388006887,1758963032049,-222.29589421,0.00028246,2]
[388006891,1758963032060,-500.0,0.00028246,2]
[388006894,1758963032070,-300.0,0.00028246,2]
[388006897,1758963032080,-500.0,0.00028246,2]
[388006899,1758963032091,-560.58923575,0.00028246,2]
[388006900,1758963032101,-500.0,0.00028246,2]
[388006903,1758963032111,-500.0,0.00028246,2]
[388006905,1758963032120,-324.12761237,0.00028246,2]
[388006906,1758963032130,-167.243571,0.00028247,2]
[388006908,1758963032139,-785.4615991,0.00028515,2]
[388006910,1758963032149,-1000.0,0.00028988,2]
[388006912,1758963032159,-1000.0,0.00028988,2]
[388006915,1758963032169,-1000.0,0.00028988,2]
[388006917,1758963032178,-1000.0,0.00028988,2]
[388006919,1758963032187,-1000.0,0.00028988,2]
[388006920,1758963032197,-1000.0,0.00028988,2]
[388006922,1758963032206,-160.0,0.00029025,2]
[388006924,1758963032215,-1680.0,0.0002903,2]
[388006926,1758963032225,-1326.92864614,0.00029347,2]
[388006928,1758963032234,-1000.0,0.00029372,2]
[388006930,1758963032245,-1000.0,0.00029426,2]
[388006932,1758963032254,-1000.0,0.00029426,2]
[388006934,1758963032263,-1000.0,0.00029426,2]
[388006936,1758963032273,-1000.0,0.00029428,2]
[388006938,1758963032283,-1000.0,0.00029428,2]
[388006940,1758963032292,-500.0,0.00029436,2]
[388006942,1758963032301,-1000.0,0.00029436,2]
[388006944,1758963032310,-1000.0,0.00029436,2]
[388006946,1758963032320,-1000.0,0.00029436,2]
[388006948,1758963032329,-260.10806618,0.00029437,2]
[388006950,1758963032338,-849.0,0.00029447,30]
[388006952,1758963032347,-260.0,0.00029573,2]
[388006954,1758963032357,-500.0,0.0002971,2]
[388006955,1758963032367,-214.72400717,0.00029737,2]
[388006957,1758963032376,-150.0,0.00029929,2]
[388006959,1758963032385,-163.0,0.00029929,2]
[388006961,1758963032394,-500.0,0.00029984,2]
[388006963,1758963032403,-10000.0,0.0003,60]
[388006965,1758963032412,-10000.0,0.0003,30]
[388006967,1758963032421,-198.42563945,0.00030103,15]
[388006969,1758963032430,-360.0,0.00030121,2]
[388006971,1758963032439,-1000.0,0.00030136,120]
[388006973,1758963032448,-1730.52597636,0.00030141,2]
[388006974,1758963032458,-425.00303501,0.00030154,2]
[388006976,1758963032467,-500.0,0.00030158,15]
[388006979,1758963032478,-154.93,0.00030161,15]
[388006980,1758963032487,-500.0,0.00030258,2]
[388006982,1758963032496,-154.93,0.00030261,15]
[388006984,1758963032505,-1000.0,0.00030273,120]
[388006986,1758963032515,-154.93,0.00030361,15]
[388006988,1758963032523,-1000.0,0.0003041,120]
[388006990,1758963032532,-500.0,0.00030454,5]
[388006992,1758963032542,-500.0,0.00030454,5]
[388006994,1758963032551,-500.0,0.00030454,5]
[388006996,1758963032560,-500.0,0.00030454,5]
[388006998,1758963032569,-500.0,0.00030454,5]
[388007000,1758963032579,-500.0,0.00030454,2]
[388007002,1758963032588,-638.06170646,0.00030454,5]
[388007004,1758963032597,-500.0,0.00030454,5]
[388007006,1758963032607,-483.96704244,0.00030454,5]
[388007008,1758963032615,-500.0,0.00030454,5]
[388007010,1758963032625,-500.0,0.00030454,5]
[388007012,1758963032634,-504.01996578,0.00030454,5]
[388007014,1758963032644,-500.0,0.00030454,5]
[388007016,1758963032653,-157.603,0.00030461,26]
[388007018,1758963032662,-154.93,0.00030461,15]
[388007020,1758963032671,-180.74192137,0.00030461,26]
[388007022,1758963032680,-420.0,0.00030497,2]
[388007024,1758963032689,-300.0,0.00030497,2]
[388007026,1758963032698,-420.0,0.00030497,2]
[388007028,1758963032707,-300.0,0.00030497,2]
[388007030,1758963032717,-500.0,0.00030532,2]
[388007032,1758963032726,-666.0,0.0003054,2]
[388007034,1758963032736,-922.82405968,0.00030547,120]
[388007036,1758963032747,-154.93,0.00030561,15]
[388007038,1758963032756,-307.11,0.00030561,15]
[388007040,1758963032764,-307.11,0.00030561,15]
[388007042,1758963032774,-307.11,0.00030561,15]
[388007044,1758963032783,-307.11,0.00030561,15]
[388007046,1758963032792,-307.11,0.00030561,15]
[388007048,1758963032801,-307.11,0.00030561,15]
[388007050,1758963032811,-307.11,0.00030561,15]
[388007052,1758963032820,-154.94,0.00030561,15]
[388007054,1758963032830,-1000.75428506,0.00030584,14]
[388007056,1758963032839,-151.0,0.00030584,14]
[388007058,1758963032848,-1680.0,0.00030629,2]
[388007060,1758963032857,-154.93,0.00030661,15]
[388007062,1758963032867,-460.0,0.00030669,2]
[388007064,1758963032876,-154.93,0.00030761,15]
[388007066,1758963032885,-283.0,0.00030805,2]
[388007068,1758963032895,-500.0,0.00030806,2]
[388007070,1758963032904,-283.0,0.00030833,2]
[388007072,1758963032913,-1544.0,0.00030852,2]
[388007074,1758963032923,-154.93,0.00030861,15]
[388007075,1758963032932,-283.0,0.00030948,7]
[388007077,1758963032942,-1000.0,0.00031002,5]
[388007080,1758963032952,-1000.0,0.00031002,5]
[388007082,1758963032962,-1000.0,0.00031002,5]
[388007084,1758963032971,-1000.0,0.00031002,5]
[388007086,1758963032980,-634.21919592,0.00031002,2]
[388007088,1758963032991,-1000.0,0.00031002,5]
[388007090,1758963033000,-1003.68549249,0.00031002,5]
[388007091,1758963033009,-497.43318604,0.00031002,5]
[388007092,1758963033019,-462.27477997,0.00031049,15]
[388007094,1758963033033,-500.0,0.0003105,5]
[388007096,1758963033043,-500.0,0.0003108,2]
[388007098,1758963033052,-500.0,0.00031133,5]
[388007100,1758963033063,-1714.0,0.00031217,2]
[388007101,1758963033073,-560.0,0.00031217,2]
[388007103,1758963033082,-500.0,0.00031233,5]
[388007105,1758963033093,-500.0,0.00031233,5]
[388007107,1758963033105,-500.0,0.00031233,2]
[388007109,1758963033115,-463.74,0.0003124,10]
[388007111,1758963033125,-500.0,0.0003125,5]
[388007113,1758963033135,-500.0,0.0003125,5]
[388007115,1758963033144,-500.0,0.0003125,5]
[388007117,1758963033154,-283.0,0.0003128,2]
[388007119,1758963033164,-283.0,0.00031291,2]
[388007121,1758963033175,-1000.0,0.00031314,2]
[388007124,1758963033186,-1000.0,0.00031314,2]
[388007125,1758963033195,-227.55472717,0.00031314,2]
[388007127,1758963033204,-685.04282826,0.0003132,2]
[388007129,1758963033214,-1233.07709087,0.0003132,2]
[388007131,1758963033225,-2192.13705044,0.0003132,2]
[388007133,1758963033234,-3425.21414132,0.0003132,2]
[388007135,1758963033244,-182.66721985,0.00031336,5]
[388007137,1758963033253,-500.0,0.00031336,5]
[388007139,1758963033262,-500.0,0.00031336,3]
[388007141,1758963033272,-500.0,0.00031336,5]
[388007143,1758963033283,-501.53364087,0.00031336,5]
[388007145,1758963033292,-260.82584346,0.00031336,5]
[388007147,1758963033302,-580.34035072,0.00031336,5]
[388007149,1758963033312,-500.0,0.00031336,5]
[388007151,1758963033320,-500.0,0.00031336,5]
[388007153,1758963033329,-500.7182875,0.00031336,5]
[388007155,1758963033339,-500.0,0.00031336,5]
[388007157,1758963033349,-500.0,0.00031336,5]
[388007159,1758963033358,-500.0,0.00031336,5]
[388007161,1758963033367,-500.0,0.00031336,5]
[388007163,1758963033376,-500.0,0.00031336,5]
[388007165,1758963033385,-500.0,0.00031354,2]
[388007167,1758963033395,-1504.0,0.0003139,3]
[388007169,1758963033405,-283.0,0.00031404,7]
[388007171,1758963033414,-1475.53389737,0.00031428,3]
[388007173,1758963033424,-318.3074234,0.0003145,5]
[388007176,1758963033434,-504.37712451,0.0003145,5]
[388007177,1758963033443,-500.0,0.0003145,5]
[388007180,1758963033454,-500.0,0.0003145,5]
[388007182,1758963033463,-500.0,0.00031506,15]
[388007184,1758963033473,-500.0,0.00031506,15]
[388007186,1758963033482,-500.0,0.00031506,15]
[388007188,1758963033491,-150.11,0.00031526,3]
[388007190,1758963033500,-818.22,0.00031526,3]
[388007191,1758963033509,-409.11,0.00031526,3]
[388007193,1758963033518,-237.49,0.00031526,3]
[388007195,1758963033527,-712.51,0.00031526,3]
[388007197,1758963033536,-300.23,0.00031536,3]
[388007199,1758963033546,-2713.12480887,0.00031536,2]
[388007229,1758963033834,-900.36664746,0.00031536,2]
[388007232,1758963033846,-15624.35365714,0.00031536,2]
[388007236,1758963033882,-545.01386929,0.00028987,2]
[388007238,1758963033891,-500.0,0.00028987,2]
[388007240,1758963033901,-26305.76352663,0.00031536,2]
[388007242,1758963033911,-782.11464084,0.00031536,2]
[388007244,1758963033920,-500.0,0.00031546,5]
[388007246,1758963033930,-500.0,0.00031546,5]
[388007249,1758963033940,-503.98273456,0.00031546,5]
[388007251,1758963033951,-503.78361162,0.00031546,5]
[388007253,1758963033960,-268.47350391,0.0003155,5]
[388007254,1758963033970,-772.70811018,0.0003155,5]
[388007256,1758963033979,-1500.0,0.0003155,5]
[388007258,1758963033988,-1500.0,0.0003155,5]
[388007260,1758963033997,-1500.0,0.0003155,5]
[388007262,1758963034007,-500.0,0.00031598,5]
[388007264,1758963034017,-500.0,0.00031628,2]
[388007267,1758963034035,-502.68454307,0.00031681,5]
[388007269,1758963034044,-852.0,0.00031685,2]
[388007271,1758963034054,-660.0,0.00031765,2]
[388007273,1758963034063,-1000.0,0.0003178,7]
[388007275,1758963034073,-500.0,0.00031781,5]
[388007277,1758963034082,-500.0,0.00031781,5]
[388007278,1758963034091,-506.80928364,0.00031781,2]
[388007280,1758963034100,-1326.92864608,0.00031794,2]
[388007282,1758963034110,-1000.0,0.00031798,5]
[388007284,1758963034120,-852.0,0.00031883,2]
[388007286,1758963034129,-1000.0,0.00031884,5]
[388007288,1758963034138,-471.31682989,0.00031884,3]
[388007290,1758963034148,-1000.0,0.00031884,5]
[388007293,1758963034159,-1000.0,0.00031884,5]
[388007294,1758963034167,-1000.0,0.00031884,5]
[388007297,1758963034177,-1000.0,0.00031884,5]
[388007299,1758963034187,-1000.0,0.00031884,5]
[388007300,1758963034196,-1000.0,0.00031884,5]
[388007302,1758963034206,-1000.0,0.00031884,5]
[388007304,1758963034216,-373.05775895,0.00031902,2]
[388007306,1758963034225,-283.0,0.00031949,2]
[388007308,1758963034234,-1000.0,0.00031998,5]
[388007310,1758963034244,-1001.69416085,0.00031998,5]
[388007312,1758963034253,-356.48949706,0.00032,120]
[388007314,1758963034262,-217.99592755,0.00032,120]
[388007316,1758963034275,-351.10201635,0.00032,120]
[388007318,1758963034285,-1000.0,0.00032,2]
[388007320,1758963034295,-1544.0,0.00032015,7]
[388007322,1758963034304,-1000.0,0.00032094,5]
[388007324,1758963034313,-1000.0,0.00032094,5]
[388007327,1758963034326,-2000.0,0.00032098,5]
[388007329,1758963034335,-2000.0,0.00032098,5]
[388007331,1758963034344,-2000.0,0.00032098,5]
[388007333,1758963034354,-283.0,0.00032122,2]
[388007334,1758963034363,-283.0,0.00032135,2]
[388007346,1758963034549,-418.35897913,0.0003215,5]
[388007347,1758963034568,-500.0,0.0003215,2]
[388007348,1758963034577,-852.0,0.00032156,2]
[388007349,1758963034586,-920.0,0.00032191,7]
[388007350,1758963034595,-283.0,0.0003222,2]
[388007351,1758963034605,-356.48949706,0.000323,120]
[388007352,1758963034614,-351.10201635,0.000323,120]
[388007353,1758963034623,-760.0,0.00032313,2]
[388007354,1758963034631,-503.23558128,0.00032346,5]
[388007355,1758963034640,-283.0,0.00032349,7]
[388007356,1758963034649,-283.0,0.00032355,2]
[388007357,1758963034658,-1500.0,0.00032432,5]
[388007358,1758963034667,-1176.24628901,0.00032432,5]
[388007359,1758963034675,-1500.0,0.00032432,5]